Workbook

Sheet Wksh 1 - Market Experience
A1: Press TAB and directional arrow keys to read through the document. If macros are disabled, press and hold the ALT key and press the F, then I, and then N key. After that, select the Enable All Content option by pressing enter. (note that you can also press the C key to select "Enable All Content") Instructions can be found in cells K1 through K4. If screen reader fails to announce a cell after performing a dropdown selection, please press F2 and then ESC to force the screen reader to resume. | B1: Unified Rate Review v6.1 [assistive technology users, please reference cell A1 for instructions] | K1: To add a product to Worksheet 2 - Plan Product Info, select the Add Product button or Ctrl + Shift + P.
K2: To add a plan to Worksheet 2 - Plan Product Info, select the Add Plan button or Ctrl + Shift + L.
B3: Company Legal Name: | C3: WellCare Health Plans of Kentucky | K3: To validate, select the Validate button or Ctrl + Shift + I.
B4: HIOS Issuer ID: | C4: 72001 | D4: State: | E4: KY | K4: To finalize, select the Finalize button or Ctrl + Shift + F.
B5: Effective Date of Rate Change(s): | C5: =MAX('Wksh 2 - Plan Product Info'!E19:X19) -> 00:00:00 | D5: Market: | E5: Individual
B8: Market Level Calculations (Same for all Plans)
B11: Section I: Experience Period Data
B12: Experience Period: | D12: 2023-01-01 | E12: to | F12: =EDATE(D12,12)-1 -> 12/31/2023
E13: Total | F13: PMPM
B14: Allowed Claims | E14: 46334093.11 | F14: =E14/E19 -> 667.1191
B15: Reinsurance | E15: 0 | F15: =E15/E19 -> 0
B16: Incurred Claims in Experience Period | E16: 36972476.23 | F16: =E16/E19 -> 532.3304
B17: Risk Adjustment | E17: 6107598.1 | F17: =E17/E19 -> 87.9373
B18: Experience Period Premium | E18: 43085549.93 | F18: =E18/E19 -> 620.3466
B19: Experience Period Member Months | E19: ='Wksh 2 - Plan Product Info'!D33 -> 69454
B21: Section II: Projections
D22: Year 1 Trend | F22: Year 2 Trend
B23: Benefit Category | C23: Experience Period Index Rate PMPM | D23: Cost | E23: Utilization | F23: Cost | G23: Utilization | H23: Trended EHB Allowed Claims PMPM
B24: Inpatient Hospital | C24: 122.6673149 | D24: 1.045515734 | E24: 1.007743087 | F24: 1.045515734 | G24: 1.007743087 | H24: =PRODUCT(C24:G24) -> 136.1726
B25: Outpatient Hospital | C25: 235.1808528 | D25: 1.045515734 | E25: 1.00280317 | F25: 1.045515734 | G25: 1.00280317 | H25: 258.5202
B26: Professional | C26: 123.8082393 | D26: 1.010867539 | E26: 1.00280317 | F26: 1.010867539 | G26: 1.00280317 | H26: 127.2241
B27: Other Medical | C27: 11.37626178 | D27: 0.998836797 | E27: 1.00280317 | F27: 0.998836797 | G27: 1.00280317 | H27: 11.4135
B28: Capitation | C28: 0.9172223973 | D28: 1 | E28: 1 | F28: 1 | G28: 1 | H28: 0.9172
B29: Prescription Drug | C29: 166.2725838 | D29: 1.028347958 | E29: 1.025733096 | F29: 1.028347958 | G29: 1.025733096 | H29: 184.9991
B30: Total | C30: =SUM(C24:C29) -> 660.2225 | H30: =SUM(H24:H29) -> 719.2467
B32: Morbidity Adjustment | F32: 0.8976779447
B33: Demographic Shift | F33: 0.9238898547
B34: Plan Design Changes | F34: 1.001203776
B35: Other | F35: 0.9974992718
B36: Adjusted Trended EHB Allowed Claims PMPM for | D36: =IF(C5<>"",C5,"") -> 1/1/2025 | F36: =H30*PRODUCT(F32:F35) -> 595.7358
B38: Manual EHB Allowed Claims PMPM | F38: 558.5686566
B39: Applied Credibility % | F39: 0.7454109739
G41: Projected Period Totals
B42: Projected Index Rate for | D42: =IF(C5<>"",C5,"") -> 1/1/2025 | F42: =ROUND(F39*F36+(1-F39)*F38,2) -> 586.27 | G42: =F42*F48 -> 166350008.6
B43: Reinsurance | F43: 0 | G43: =F43*F48 -> 0
B44: Risk Adjustment Payment/Charge | F44: 29.25074719 | G44: =F44*F48 -> 8299694.761
B45: Exchange User Fees | F45: 0 | G45: =F45*F46*F48 -> 0
B46: Market Adjusted Index Rate | F46: =(F42-F43-F44)/(1-F45) -> 557.0193 | G46: =F46*F48 -> 158050313.8
B48: Projected Member Months | F48: ='Wksh 2 - Plan Product Info'!D73 -> 283743
B50: Information Not Releasable to the Public Unless Authorized by Law: This information has not been publically disclosed and may be privileged and confidential. It is for internal government use only and must not be disseminated, distributed, or copied to persons not authorized to receive the information. Unauthorized disclosure may result in prosecution to the full extent of the law.

Sheet Wksh 2 - Plan Product Info
A1: Press TAB and directional arrow keys to read through the document. If macros are disabled, press and hold the ALT key and press the F, then I, and then N key. After that, select the Enable All Content option by pressing enter. (note that you can also press the C key to select "Enable All Content") Instructions can be found in cells P1 through P6. If screen reader fails to announce a cell after performing a dropdown selection, please press F2 and then ESC to force the screen reader to resume. | C1: Product-Plan Data Collection [assistive technology users, please reference cell A1 for instructions] | P1: To add a product to Worksheet 2 - Plan Product Info, select the Add Product button or Ctrl + Shift + P.
P2: To add a plan to Worksheet 2 - Plan Product Info, select the Add Plan button or Ctrl + Shift + L.
C3: Company Legal Name: | D3: =IF('Wksh 1 - Market Experience'!C3<>"", 'Wksh 1 - Market Experience'!C3,"") ->  | P3: To validate, select the Validate button or Ctrl + Shift + I.
C4: HIOS Issuer ID: | D4: =IF('Wksh 1 - Market Experience'!C4<>"", 'Wksh 1 - Market Experience'!C4,"") ->  | E4: State: | F4: =IF('Wksh 1 - Market Experience'!E4<>"",'Wksh 1 - Market Experience'!E4,"") ->  | P4: To finalize, select the Finalize button or Ctrl + Shift + F.
C5: Effective Date of Rate Change(s): | D5: =IF('Wksh 1 - Market Experience'!C5<>"", 'Wksh 1 - Market Experience'!C5,"") -> 00:00:00 | E5: Market: | F5: =IF('Wksh 1 - Market Experience'!E5<>"",'Wksh 1 - Market Experience'!E5,"") ->  | P5: To remove a product, navigate to the corresponding Product Name/Product ID field and select the Remove Product button or Ctrl + Shift + Q.
P6: To remove a plan, navigate to the corresponding Plan Name/Plan ID field and select the Remove Plan button or Ctrl + Shift + A.
C7: Product/Plan Level Calculations
B9: Field # | C9: Section I: General Product and Plan Information
B10: 1.1 | C10: Product Name | E10: Ambetter | M10: Ambetter + Vision + Adult Dental | U10: Ambetter
B11: 1.2 | C11: Product ID | E11: 72001KY002 | M11: 72001KY003 | U11: 72001KY004
B12: 1.3 | C12: Plan Name | E12: Complete Silver | F12: Clear Silver | G12: Focused Silver | H12: Everyday Bronze | I12: Choice Bronze HSA | J12: Everyday Gold | K12: Complete Gold | L12: Clear Bronze | M12: Complete Silver + Vision + Adult Dental | N12: Focused Silver + Vision + Adult Dental | O12: Everyday Bronze + Vision + Adult Dental | P12: Choice Bronze HSA + Vision + Adult Dental | Q12: Everyday Gold + Vision + Adult Dental | R12: Complete Gold + Vision + Adult Dental | S12: Clear Silver + Vision + Adult Dental | T12: Clear Bronze + Vision + Adult Dental | U12: Gold 202 | V12: Silver 203 | W12: Gold 201 HSA | X12: Silver 201 HSA
B13: 1.4 | C13: Plan ID (Standard Component ID) | E13: 72001KY0020005 | F13: 72001KY0020006 | G13: 72001KY0020007 | H13: 72001KY0020003 | I13: 72001KY0020002 | J13: 72001KY0020010 | K13: 72001KY0020009 | L13: 72001KY0020001 | M13: 72001KY0030005 | N13: 72001KY0030007 | O13: 72001KY0030003 | P13: 72001KY0030002 | Q13: 72001KY0030010 | R13: 72001KY0030009 | S13: 72001KY0030006 | T13: 72001KY0030001 | U13: 72001KY0040001 | V13: 72001KY0040002 | W13: 72001KY0040003 | X13: 72001KY0040004
B14: 1.5 | C14: Metal | E14: Silver | F14: Silver | G14: Silver | H14: Bronze | I14: Bronze | J14: Gold | K14: Gold | L14: Bronze | M14: Silver | N14: Silver | O14: Bronze | P14: Bronze | Q14: Gold | R14: Gold | S14: Silver | T14: Bronze | U14: Gold | V14: Silver | W14: Gold | X14: Silver
B15: 1.6 | C15: AV Metal Value | E15: 0.7021 | F15: 0.7065 | G15: 0.7015 | H15: 0.6461 | I15: 0.6353 | J15: 0.7802 | K15: 0.8047 | L15: 0.6137 | M15: 0.7021 | N15: 0.7015 | O15: 0.6461 | P15: 0.6353 | Q15: 0.7802 | R15: 0.8047 | S15: 0.7104 | T15: 0.6137 | U15: 0.7818 | V15: 0.6859 | W15: 0.8051 | X15: 0.6933
B16: 1.7 | C16: Plan Category | E16: Renewing | F16: Renewing | G16: Renewing | H16: Renewing | I16: Renewing | J16: Renewing | K16: Renewing | L16: Terminated | M16: Renewing | N16: Renewing | O16: Renewing | P16: Renewing | Q16: Renewing | R16: Renewing | S16: Terminated | T16: Terminated | U16: New | V16: New | W16: New | X16: New
B17: 1.8 | C17: Plan Type | E17: HMO | F17: HMO | G17: HMO | H17: HMO | I17: HMO | J17: HMO | K17: HMO | L17: HMO | M17: HMO | N17: HMO | O17: HMO | P17: HMO | Q17: HMO | R17: HMO | S17: HMO | T17: HMO | U17: HMO | V17: HMO | W17: HMO | X17: HMO
B18: 1.9 | C18: Exchange Plan? | E18: Yes | F18: Yes | G18: Yes | H18: Yes | I18: Yes | J18: Yes | K18: Yes | L18: No | M18: Yes | N18: Yes | O18: Yes | P18: Yes | Q18: Yes | R18: Yes | S18: No | T18: No | U18: No | V18: No | W18: No | X18: No
B19: 1.10 | C19: Effective Date of Proposed Rates | E19: 2025-01-01 | F19: 2025-01-01 | G19: 2025-01-01 | H19: 2025-01-01 | I19: 2025-01-01 | J19: 2025-01-01 | K19: 2025-01-01 | L19: 2025-01-01 | M19: 2025-01-01 | N19: 2025-01-01 | O19: 2025-01-01 | P19: 2025-01-01 | Q19: 2025-01-01 | R19: 2025-01-01 | S19: 2025-01-01 | T19: 2025-01-01 | U19: 2025-01-01 | V19: 2025-01-01 | W19: 2025-01-01 | X19: 2025-01-01
B20: 1.11 | C20: Cumulative Rate Change % (over 12 mos prior) | E20: 0.02551718951 | F20: 0.04200086159 | G20: 0.04005486971 | H20: -0.01033299031 | I20: -0.007132611253 | J20: 0.001125441361 | K20: -0.01242335301 | L20: 0 | M20: 0.01884064605 | N20: 0.03384948417 | O20: -0.01658010452 | P20: -0.007103197755 | Q20: 0.001670138708 | R20: -0.01302492745 | S20: 0 | T20: 0 | U20: 0 | V20: 0 | W20: 0 | X20: 0
B21: 1.12 | C21: Product Rate Increase % | E21: =IF(SUMPRODUCT((E16:L16="Renewing")*((E14:L14="Platinum")+(E14:L14="Gold")+(E14:L14="Silver")+(E14:L14="Bronze")+(E14:L14="Catastrophic")))=0, 0, ROUND(ROUND(SUMPRODUCT(1+E20:L20,E34:L34,E35:L35,--(E16:L16="Renewing")*((E14:L14="Platinum")+(E14:L14="Gold")+(E14:L14="Silver")+(E14:L14="Bronze")+(E14:L14="Catastrophic")))/SUMPRODUCT(E34:L34,E35:L35,--(E16:L16="Renewing")*((E14:L14="Platinum")+(E14:L14="Gold")+(E14:L14="Silver")+(E14:L14="Bronze")+(E14:L14="Catastrophic"))), 4)-1, 4)) -> 0 | M21: =IF(SUMPRODUCT((M16:T16="Renewing")*((M14:T14="Platinum")+(M14:T14="Gold")+(M14:T14="Silver")+(M14:T14="Bronze")+(M14:T14="Catastrophic")))=0, 0, ROUND(ROUND(SUMPRODUCT(1+M20:T20,M34:T34,M35:T35,--(M16:T16="Renewing")*((M14:T14="Platinum")+(M14:T14="Gold")+(M14:T14="Silver")+(M14:T14="Bronze")+(M14:T14="Catastrophic")))/SUMPRODUCT(M34:T34,M35:T35,--(M16:T16="Renewing")*((M14:T14="Platinum")+(M14:T14="Gold")+(M14:T14="Silver")+(M14:T14="Bronze")+(M14:T14="Catastrophic"))), 4)-1, 4)) -> 0 | U21: =IF(SUMPRODUCT((U16:X16="Renewing")*((U14:X14="Platinum")+(U14:X14="Gold")+(U14:X14="Silver")+(U14:X14="Bronze")+(U14:X14="Catastrophic")))=0, 0, ROUND(ROUND(SUMPRODUCT(1+U20:X20,U34:X34,U35:X35,--(U16:X16="Renewing")*((U14:X14="Platinum")+(U14:X14="Gold")+(U14:X14="Silver")+(U14:X14="Bronze")+(U14:X14="Catastrophic")))/SUMPRODUCT(U34:X34,U35:X35,--(U16:X16="Renewing")*((U14:X14="Platinum")+(U14:X14="Gold")+(U14:X14="Silver")+(U14:X14="Bronze")+(U14:X14="Catastrophic"))), 4)-1, 4)) -> 0
B22: 1.13 | C22: Submission Level Rate Increase % | E22: =IF(SUMPRODUCT((E16:X16="Renewing")*((E14:X14="Platinum")+(E14:X14="Gold")+(E14:X14="Silver")+(E14:X14="Bronze")+(E14:X14="Catastrophic")))=0, 0, ROUND(ROUND(SUMPRODUCT(1+E20:X20,E34:X34,E35:X35,--(E16:X16="Renewing")*((E14:X14="Platinum")+(E14:X14="Gold")+(E14:X14="Silver")+(E14:X14="Bronze")+(E14:X14="Catastrophic")))/SUMPRODUCT(E34:X34,E35:X35,--(E16:X16="Renewing")*((E14:X14="Platinum")+(E14:X14="Gold")+(E14:X14="Silver")+(E14:X14="Bronze")+(E14:X14="Catastrophic"))), 4)-1, 4)) -> 0
A24: Worksheet 1 Totals | C24: Section II: Experience Period and Current Plan Level Information
B25: 2.1 | C25: Plan ID (Standard Component ID) | D25: Total | E25: =E13 -> 0 | F25: 0 | G25: 0 | H25: 0 | I25: 0 | J25: 0 | K25: 0 | L25: 0 | M25: 0 | N25: 0 | O25: 0 | P25: 0 | Q25: 0 | R25: 0 | S25: 0 | T25: 0 | U25: 0 | V25: 0 | W25: 0 | X25: 0
A26: ='Wksh 1 - Market Experience'!E14 -> 0 | B26: 2.2 | C26: Allowed Claims | D26: =SUM(E26:XFD26) -> 46334093.11 | E26: =2274825.1732 -> 0 | F26: =5577004.4642 -> 0 | G26: =7533407.7176 -> 0 | H26: =2488875.4727 -> 0 | I26: =1742446.7839 -> 0 | J26: =4557123.0058 -> 0 | K26: =4453119.7223 -> 0 | L26: =2520869.1265 -> 0 | M26: =1419908.9764 -> 0 | N26: =2175514.7843 -> 0 | O26: =805647.892 -> 0 | P26: =1104398.976 -> 0 | Q26: =2045415.5344 -> 0 | R26: =1747504.9761 -> 0 | S26: =3911324.2471 -> 0 | T26: =1976706.262 -> 0 | U26: =0 -> 0 | V26: =0 -> 0 | W26: =0 -> 0 | X26: =0 -> 0
A27: ='Wksh 1 - Market Experience'!E15 -> 0 | B27: 2.3 | C27: Reinsurance | D27: =SUM(E27:XFD27) -> 0 | E27: =0 -> 0 | F27: =0 -> 0 | G27: =0 -> 0 | H27: =0 -> 0 | I27: =0 -> 0 | J27: =0 -> 0 | K27: =0 -> 0 | L27: =0 -> 0 | M27: =0 -> 0 | N27: =0 -> 0 | O27: =0 -> 0 | P27: =0 -> 0 | Q27: =0 -> 0 | R27: =0 -> 0 | S27: =0 -> 0 | T27: =0 -> 0 | U27: =0 -> 0 | V27: =0 -> 0 | W27: =0 -> 0 | X27: =0 -> 0
B28: 2.4 | C28: Member Cost Sharing | D28: =SUM(E28:XFD28) -> 9361616.886 | E28: =539197.0376 -> 0 | F28: =697719.0664 -> 0 | G28: =1198711.8129 -> 0 | H28: =1072285.2749 -> 0 | I28: =482691.6153 -> 0 | J28: =919606.6129 -> 0 | K28: =687915.6056 -> 0 | L28: =978743.2709 -> 0 | M28: =218346.7167 -> 0 | N28: =362107.5436 -> 0 | O28: =301139.2617 -> 0 | P28: =217113.8424 -> 0 | Q28: =393370.6943 -> 0 | R28: =377406.3339 -> 0 | S28: =462731.7035 -> 0 | T28: =452530.4938 -> 0 | U28: =0 -> 0 | V28: =0 -> 0 | W28: =0 -> 0 | X28: =0 -> 0
B29: 2.5 | C29: Cost Sharing Reduction | D29: =SUM(E29:XFD29) -> 0 | E29: =0 -> 0 | F29: =0 -> 0 | G29: =0 -> 0 | H29: =0 -> 0 | I29: =0 -> 0 | J29: =0 -> 0 | K29: =0 -> 0 | L29: =0 -> 0 | M29: =0 -> 0 | N29: =0 -> 0 | O29: =0 -> 0 | P29: =0 -> 0 | Q29: =0 -> 0 | R29: =0 -> 0 | S29: =0 -> 0 | T29: =0 -> 0 | U29: =0 -> 0 | V29: =0 -> 0 | W29: =0 -> 0 | X29: =0 -> 0
A30: ='Wksh 1 - Market Experience'!E16 -> 0 | B30: 2.6 | C30: Incurred Claims | D30: =D26-D27-D28-D29 -> 36972476.23 | E30: 0 | F30: 0 | G30: 0 | H30: 0 | I30: 0 | J30: 0 | K30: 0 | L30: 0 | M30: 0 | N30: 0 | O30: 0 | P30: 0 | Q30: 0 | R30: 0 | S30: 0 | T30: 0 | U30: 0 | V30: 0 | W30: 0 | X30: 0
A31: ='Wksh 1 - Market Experience'!E17 -> 0 | B31: 2.7 | C31: Risk Adjustment Transfer Amount | D31: =SUM(E31:XFD31) -> 6107598.1 | E31: =359692.3819 -> 0 | F31: =553756.2629 -> 0 | G31: =916086.2933 -> 0 | H31: =687281.3107 -> 0 | I31: =295349.0505 -> 0 | J31: =421477.1128 -> 0 | K31: =347661.4246 -> 0 | L31: =647001.8167 -> 0 | M31: =195725.8823 -> 0 | N31: =367250.6211 -> 0 | O31: =203918.0569 -> 0 | P31: =116703.9172 -> 0 | Q31: =228293.39 -> 0 | R31: =220518.9158 -> 0 | S31: =323135.2916 -> 0 | T31: =223746.3718 -> 0 | U31: =0 -> 0 | V31: =0 -> 0 | W31: =0 -> 0 | X31: =0 -> 0
A32: ='Wksh 1 - Market Experience'!E18 -> 0 | B32: 2.8 | C32: Premium | D32: =SUM(E32:XFD32) -> 43085549.93 | E32: =2700783.75789534 -> 0 | F32: =4319861.43971715 -> 0 | G32: =6979015.36137514 -> 0 | H32: =4736852.05461764 -> 0 | I32: =1980458.51002537 -> 0 | J32: =3420186.19758598 -> 0 | K32: =2635966.83603859 -> 0 | L32: =3983152.65889252 -> 0 | M32: =1308864.06188131 -> 0 | N32: =2396282.47165752 -> 0 | O32: =1245839.66709153 -> 0 | P32: =717754.180496128 -> 0 | Q32: =1589627.01807628 -> 0 | R32: =1516533.82954184 -> 0 | S32: =2267712.74884888 -> 0 | T32: =1286659.13625879 -> 0 | U32: =0 -> 0 | V32: =0 -> 0 | W32: =0 -> 0 | X32: =0 -> 0
A33: ='Wksh 1 - Market Experience'!E19 -> 0 | B33: 2.9 | C33: Experience Period Member Months | D33: =SUM(E33:XFD33) -> 69454 | E33: =4095 -> 0 | F33: =6310 -> 0 | G33: =10433 -> 0 | H33: =7812 -> 0 | I33: =3356 -> 0 | J33: =4806 -> 0 | K33: =3959 -> 0 | L33: =7340 -> 0 | M33: =2224 -> 0 | N33: =4170 -> 0 | O33: =2313 -> 0 | P33: =1324 -> 0 | Q33: =2595 -> 0 | R33: =2507 -> 0 | S33: =3674 -> 0 | T33: =2536 -> 0 | U33: =0 -> 0 | V33: =0 -> 0 | W33: =0 -> 0 | X33: =0 -> 0
B34: 2.10 | C34: Current Enrollment | D34: =SUM(E34:XFD34) -> 20035 | E34: =1141 -> 0 | F34: =2526 -> 0 | G34: =4903 -> 0 | H34: =3549 -> 0 | I34: =621 -> 0 | J34: =1164 -> 0 | K34: =631 -> 0 | L34: =0 -> 0 | M34: =752 -> 0 | N34: =1733 -> 0 | O34: =798 -> 0 | P34: =213 -> 0 | Q34: =504 -> 0 | R34: =331 -> 0 | S34: =1169 -> 0 | T34: =0 -> 0 | U34: =0 -> 0 | V34: =0 -> 0 | W34: =0 -> 0 | X34: =0 -> 0
B35: 2.11 | C35: Current Premium PMPM | D35: =SUMPRODUCT(E35:XFD35,E34:XFD34)/D34 -> 578.9798 | E35: =612.863197701149 -> 0 | F35: =593.38042593911 -> 0 | G35: =601.014267579545 -> 0 | H35: =530.021858157989 -> 0 | I35: =544.110362228674 -> 0 | J35: =658.59409266623 -> 0 | K35: =650.953306636356 -> 0 | L35: =0 -> 0 | M35: =563.45626613471 -> 0 | N35: =555.944885725946 -> 0 | O35: =514.086367098248 -> 0 | P35: =494.076467522053 -> 0 | Q35: =594.346360678198 -> 0 | R35: =602.251802016716 -> 0 | S35: =562.094761623436 -> 0 | T35: =0 -> 0 | U35: =0 -> 0 | V35: =0 -> 0 | W35: =0 -> 0 | X35: =0 -> 0
B36: 2.12 | C36: Loss Ratio | D36: =D30/(D31+D32) -> 0.7515777646 | E36: 0 | F36: 0 | G36: 0 | H36: 0 | I36: 0 | J36: 0 | K36: 0 | L36: 0 | M36: 0 | N36: 0 | O36: 0 | P36: 0 | Q36: 0 | R36: 0 | S36: 0 | T36: 0 | U36: 0 | V36: 0 | W36: 0 | X36: 0
C37: Per Member Per Month
B38: 2.13 | C38: Allowed Claims | D38: =D26/D33 -> 667.1191 | E38: 0 | F38: 0 | G38: 0 | H38: 0 | I38: 0 | J38: 0 | K38: 0 | L38: 0 | M38: 0 | N38: 0 | O38: 0 | P38: 0 | Q38: 0 | R38: 0 | S38: 0 | T38: 0 | U38: 0 | V38: 0 | W38: 0 | X38: 0
B39: 2.14 | C39: Reinsurance | D39: =D27/D33 -> 0 | E39: 0 | F39: 0 | G39: 0 | H39: 0 | I39: 0 | J39: 0 | K39: 0 | L39: 0 | M39: 0 | N39: 0 | O39: 0 | P39: 0 | Q39: 0 | R39: 0 | S39: 0 | T39: 0 | U39: 0 | V39: 0 | W39: 0 | X39: 0
B40: 2.15 | C40: Member Cost Sharing | D40: =D28/D33 -> 134.7887 | E40: 0 | F40: 0 | G40: 0 | H40: 0 | I40: 0 | J40: 0 | K40: 0 | L40: 0 | M40: 0 | N40: 0 | O40: 0 | P40: 0 | Q40: 0 | R40: 0 | S40: 0 | T40: 0 | U40: 0 | V40: 0 | W40: 0 | X40: 0
B41: 2.16 | C41: Cost Sharing Reduction | D41: =D29/D33 -> 0 | E41: 0 | F41: 0 | G41: 0 | H41: 0 | I41: 0 | J41: 0 | K41: 0 | L41: 0 | M41: 0 | N41: 0 | O41: 0 | P41: 0 | Q41: 0 | R41: 0 | S41: 0 | T41: 0 | U41: 0 | V41: 0 | W41: 0 | X41: 0
B42: 2.17 | C42: Incurred Claims | D42: =D30/D33 -> 532.3304 | E42: 0 | F42: 0 | G42: 0 | H42: 0 | I42: 0 | J42: 0 | K42: 0 | L42: 0 | M42: 0 | N42: 0 | O42: 0 | P42: 0 | Q42: 0 | R42: 0 | S42: 0 | T42: 0 | U42: 0 | V42: 0 | W42: 0 | X42: 0
B43: 2.18 | C43: Risk Adjustment Transfer Amount | D43: =D31/D33 -> 87.9373 | E43: 0 | F43: 0 | G43: 0 | H43: 0 | I43: 0 | J43: 0 | K43: 0 | L43: 0 | M43: 0 | N43: 0 | O43: 0 | P43: 0 | Q43: 0 | R43: 0 | S43: 0 | T43: 0 | U43: 0 | V43: 0 | W43: 0 | X43: 0
B44: 2.19 | C44: Premium | D44: =D32/D33 -> 620.3466 | E44: 0 | F44: 0 | G44: 0 | H44: 0 | I44: 0 | J44: 0 | K44: 0 | L44: 0 | M44: 0 | N44: 0 | O44: 0 | P44: 0 | Q44: 0 | R44: 0 | S44: 0 | T44: 0 | U44: 0 | V44: 0 | W44: 0 | X44: 0
C46: Section III: Plan Adjustment Factors
B47: 3.1 | C47: Plan ID (Standard Component ID) | E47: =E13 -> 0 | F47: 0 | G47: 0 | H47: 0 | I47: 0 | J47: 0 | K47: 0 | L47: 0 | M47: 0 | N47: 0 | O47: 0 | P47: 0 | Q47: 0 | R47: 0 | S47: 0 | T47: 0 | U47: 0 | V47: 0 | W47: 0 | X47: 0
B48: 3.2 | C48: Market Adjusted Index Rate | E48: ='Wksh 1 - Market Experience'!F46 -> 0
B49: 3.3 | C49: AV and Cost Sharing Design of Plan | E49: 0.8795683827 | F49: 0.8611257315 | G49: 0.8791159282 | H49: 0.7185811233 | I49: 0.7319928555 | J49: 0.9156900048 | K49: 0.9418195934 | L49: 0 | M49: 0.8795683827 | N49: 0.8791159282 | O49: 0.7185811233 | P49: 0.7319928555 | Q49: 0.9156900048 | R49: 0.9418195934 | S49: 0 | T49: 0 | U49: 0.9349527674 | V49: 0.8027351291 | W49: 0.9272133439 | X49: 0.76496466
B50: 3.4 | C50: Provider Network Adjustment | E50: 1 | F50: 1 | G50: 1 | H50: 1 | I50: 1 | J50: 1 | K50: 1 | L50: 0 | M50: 1 | N50: 1 | O50: 1 | P50: 1 | Q50: 1 | R50: 1 | S50: 0 | T50: 0 | U50: 1 | V50: 1 | W50: 1 | X50: 1
B51: 3.5 | C51: Benefits in Addition to EHB | E51: 1 | F51: 1 | G51: 1 | H51: 1 | I51: 1 | J51: 1 | K51: 1 | L51: 0 | M51: 1.0314 | N51: 1.0314 | O51: 1.0314 | P51: 1.0314 | Q51: 1.0314 | R51: 1.0314 | S51: 0 | T51: 0 | U51: 1 | V51: 1 | W51: 1 | X51: 1
C52: Administrative Costs
B53: 3.6 | C53: Administrative Expense | E53: 0.1270806953 | F53: 0.1270806953 | G53: 0.1270806953 | H53: 0.1270806953 | I53: 0.1270806953 | J53: 0.1270806953 | K53: 0.1270806953 | L53: 0 | M53: 0.1270806953 | N53: 0.1270806953 | O53: 0.1270806953 | P53: 0.1270806953 | Q53: 0.1270806953 | R53: 0.1270806953 | S53: 0 | T53: 0 | U53: 0.1270806953 | V53: 0.1270806953 | W53: 0.1270806953 | X53: 0.1270806953
B54: 3.7 | C54: Taxes and Fees | E54: 0.02169639821 | F54: 0.02169639821 | G54: 0.02169639821 | H54: 0.02169639821 | I54: 0.02169639821 | J54: 0.02169639821 | K54: 0.02169639821 | L54: 0 | M54: 0.02169639821 | N54: 0.02169639821 | O54: 0.02169639821 | P54: 0.02169639821 | Q54: 0.02169639821 | R54: 0.02169639821 | S54: 0 | T54: 0 | U54: 0.02169639821 | V54: 0.02169639821 | W54: 0.02169639821 | X54: 0.02169639821
B55: 3.8 | C55: Profit & Risk Load | E55: 0.0395 | F55: 0.0395 | G55: 0.0395 | H55: 0.0395 | I55: 0.0395 | J55: 0.0395 | K55: 0.0395 | L55: 0 | M55: 0.0395 | N55: 0.0395 | O55: 0.0395 | P55: 0.0395 | Q55: 0.0395 | R55: 0.0395 | S55: 0 | T55: 0 | U55: 0.0395 | V55: 0.0395 | W55: 0.0395 | X55: 0.0395
B56: 3.9 | C56: Catastrophic Adjustment | E56: 1 | F56: 1 | G56: 1 | H56: 1 | I56: 1 | J56: 1 | K56: 1 | L56: 0 | M56: 1 | N56: 1 | O56: 1 | P56: 1 | Q56: 1 | R56: 1 | S56: 0 | T56: 0 | U56: 1 | V56: 1 | W56: 1 | X56: 1
B57: 3.10 | C57: Plan Adjusted Index Rate | E57: =($E$48*PRODUCT(E49:E51)*E56)/(1-SUM(E53:E55)) -> 0 | F57: 0 | G57: 0 | H57: 0 | I57: 0 | J57: 0 | K57: 0 | L57: 0 | M57: 0 | N57: 0 | O57: 0 | P57: 0 | Q57: 0 | R57: 0 | S57: 0 | T57: 0 | U57: 0 | V57: 0 | W57: 0 | X57: 0
B59: 3.11 | C59: Age Calibration Factor | D59: 0.5812762756 | E59: =IF(D59<>"", D59, "") -> 0
B60: 3.12 | C60: Geographic Calibration Factor | D60: 1 | E60: =IF(D60<>"", D60, "") -> 0
B61: 3.13 | C61: Tobacco Calibration Factor | D61: 0.9975006503 | E61: =IF(D61<>"", D61, "") -> 0
B62: 3.14 | C62: Calibrated Plan Adjusted Index Rate | E62: =E57*(PRODUCT($E$59:$E$61)) -> 0 | F62: 0 | G62: 0 | H62: 0 | I62: 0 | J62: 0 | K62: 0 | L62: 0 | M62: 0 | N62: 0 | O62: 0 | P62: 0 | Q62: 0 | R62: 0 | S62: 0 | T62: 0 | U62: 0 | V62: 0 | W62: 0 | X62: 0
C64: Section IV: Projected Plan Level Information
B65: 4.1 | C65: Plan ID (Standard Component ID) | D65: Total | E65: =E13 -> 0 | F65: 0 | G65: 0 | H65: 0 | I65: 0 | J65: 0 | K65: 0 | L65: 0 | M65: 0 | N65: 0 | O65: 0 | P65: 0 | Q65: 0 | R65: 0 | S65: 0 | T65: 0 | U65: 0 | V65: 0 | W65: 0 | X65: 0
B66: 4.2 | C66: Allowed Claims | D66: =SUM(E66:XFD66) -> 167481778 | E66: =10709076.2205805 -> 0 | F66: =21506139.4308509 -> 0 | G66: =44908933.1957891 -> 0 | H66: =23765420.1808753 -> 0 | I66: =5007309.56518499 -> 0 | J66: =9110176.93218013 -> 0 | K66: =5415592.30381651 -> 0 | L66: =0 -> 0 | M66: =5131561.3266848 -> 0 | N66: =22096672.3095306 -> 0 | O66: =10284844.6693521 -> 0 | P66: =2165289.91808025 -> 0 | Q66: =4146575.60268116 -> 0 | R66: =2464068.40440825 -> 0 | S66: =0 -> 0 | T66: =0 -> 0 | U66: =64658.6942635128 -> 0 | V66: =344364.9966122 -> 0 | W66: =67554.4307905814 -> 0 | X66: =293539.799055498 -> 0
B67: 4.3 | C67: Reinsurance | D67: =SUM(E67:XFD67) -> 0 | E67: =0 -> 0 | F67: =0 -> 0 | G67: =0 -> 0 | H67: =0 -> 0 | I67: =0 -> 0 | J67: =0 -> 0 | K67: =0 -> 0 | L67: =0 -> 0 | M67: =0 -> 0 | N67: =0 -> 0 | O67: =0 -> 0 | P67: =0 -> 0 | Q67: =0 -> 0 | R67: =0 -> 0 | S67: =0 -> 0 | T67: =0 -> 0 | U67: =0 -> 0 | V67: =0 -> 0 | W67: =0 -> 0 | X67: =0 -> 0
B68: 4.4 | C68: Member Cost Sharing | D68: =SUM(E68:XFD68) -> 26646516.18 | E68: =1486216.07122847 -> 0 | F68: =2673442.70737464 -> 0 | G68: =4699452.9617496 -> 0 | H68: =6516035.6081042 -> 0 | I68: =1422797.31659096 -> 0 | J68: =1514865.00581631 -> 0 | K68: =823713.082189494 -> 0 | L68: =0 -> 0 | M68: =695509.615060845 -> 0 | N68: =2259807.79872623 -> 0 | O68: =2746147.98127101 -> 0 | P68: =599597.423528858 -> 0 | Q68: =672721.855018166 -> 0 | R68: =365770.673445158 -> 0 | S68: =0 -> 0 | T68: =0 -> 0 | U68: =10174.8798032851 -> 0 | V68: =73047.7956304687 -> 0 | W68: =11410.4099000437 -> 0 | X68: =75804.9965360862 -> 0
B69: 4.5 | C69: Cost Sharing Reduction | D69: =SUM(E69:XFD69) -> 0 | E69: =0 -> 0 | F69: =0 -> 0 | G69: =0 -> 0 | H69: =0 -> 0 | I69: =0 -> 0 | J69: =0 -> 0 | K69: =0 -> 0 | L69: =0 -> 0 | M69: =0 -> 0 | N69: =0 -> 0 | O69: =0 -> 0 | P69: =0 -> 0 | Q69: =0 -> 0 | R69: =0 -> 0 | S69: =0 -> 0 | T69: =0 -> 0 | U69: =0 -> 0 | V69: =0 -> 0 | W69: =0 -> 0 | X69: =0 -> 0
B70: 4.6 | C70: Incurred Claims | D70: =D66-D67-D68-D69 -> 140835261.8 | E70: 0 | F70: 0 | G70: 0 | H70: 0 | I70: 0 | J70: 0 | K70: 0 | L70: 0 | M70: 0 | N70: 0 | O70: 0 | P70: 0 | Q70: 0 | R70: 0 | S70: 0 | T70: 0 | U70: 0 | V70: 0 | W70: 0 | X70: 0
B71: 4.7 | C71: Risk Adjustment Transfer Amount | D71: =SUM(E71:XFD71) -> 6963262.571 | E71: =439450.992128703 -> 0 | F71: =871294.355533449 -> 0 | G71: =1787277.39463569 -> 0 | H71: =1094026.09198066 -> 0 | I71: =224081.477027262 -> 0 | J71: =389486.049928779 -> 0 | K71: =228744.217212914 -> 0 | L71: =0 -> 0 | M71: =205651.382925031 -> 0 | N71: =859441.179166768 -> 0 | O71: =461071.382147433 -> 0 | P71: =94432.7591283437 -> 0 | Q71: =172963.120149835 -> 0 | R71: =101574.113833736 -> 0 | S71: =0 -> 0 | T71: =0 -> 0 | U71: =2748.56263575221 -> 0 | V71: =15215.257447914 -> 0 | W71: =2846.72558702907 -> 0 | X71: =12957.5095685461 -> 0
B72: 4.8 | C72: Premium | D72: =SUM(E72:XFD72) -> 164937440 | E72: =10808236.7194894 -> 0 | F72: =20980037.3108118 -> 0 | G72: =43935229.6004787 -> 0 | H72: =21982560.299697 -> 0 | I72: =4586565.39096395 -> 0 | J72: =9972755.46078691 -> 0 | K72: =6024106.39784432 -> 0 | L72: =0 -> 0 | M72: =5216875.91113214 -> 0 | N72: =21790719.4935085 -> 0 | O72: =9555495.9826175 -> 0 | P72: =1993603.48414231 -> 0 | Q72: =4567843.83059389 -> 0 | R72: =2759052.89077924 -> 0 | S72: =0 -> 0 | T72: =0 -> 0 | U72: =71857.1682867084 -> 0 | V72: =341528.037881871 -> 0 | W72: =73807.427230072 -> 0 | X72: =277164.560830847 -> 0
B73: 4.9 | C73: Projected Member Months | D73: =SUM(E73:XFD73) -> 283743 | E73: =17907 -> 0 | F73: =35504 -> 0 | G73: =72829 -> 0 | H73: =44580 -> 0 | I73: =9131 -> 0 | J73: =15871 -> 0 | K73: =9321 -> 0 | L73: =0 -> 0 | M73: =8380 -> 0 | N73: =35021 -> 0 | O73: =18788 -> 0 | P73: =3848 -> 0 | Q73: =7048 -> 0 | R73: =4139 -> 0 | S73: =0 -> 0 | T73: =0 -> 0 | U73: =112 -> 0 | V73: =620 -> 0 | W73: =116 -> 0 | X73: =528 -> 0
B74: 4.10 | C74: Loss Ratio | D74: =D70/(D71+D72) -> 0.8192826424 | E74: 0 | F74: 0 | G74: 0 | H74: 0 | I74: 0 | J74: 0 | K74: 0 | L74: 0 | M74: 0 | N74: 0 | O74: 0 | P74: 0 | Q74: 0 | R74: 0 | S74: 0 | T74: 0 | U74: 0 | V74: 0 | W74: 0 | X74: 0
C75: Per Member Per Month
B76: 4.11 | C76: Allowed Claims | D76: =D66/D73 -> 590.2587 | E76: 0 | F76: 0 | G76: 0 | H76: 0 | I76: 0 | J76: 0 | K76: 0 | L76: 0 | M76: 0 | N76: 0 | O76: 0 | P76: 0 | Q76: 0 | R76: 0 | S76: 0 | T76: 0 | U76: 0 | V76: 0 | W76: 0 | X76: 0
B77: 4.12 | C77: Reinsurance | D77: =D67/D73 -> 0 | E77: 0 | F77: 0 | G77: 0 | H77: 0 | I77: 0 | J77: 0 | K77: 0 | L77: 0 | M77: 0 | N77: 0 | O77: 0 | P77: 0 | Q77: 0 | R77: 0 | S77: 0 | T77: 0 | U77: 0 | V77: 0 | W77: 0 | X77: 0
B78: 4.13 | C78: Member Cost Sharing | D78: =D68/D73 -> 93.9107 | E78: 0 | F78: 0 | G78: 0 | H78: 0 | I78: 0 | J78: 0 | K78: 0 | L78: 0 | M78: 0 | N78: 0 | O78: 0 | P78: 0 | Q78: 0 | R78: 0 | S78: 0 | T78: 0 | U78: 0 | V78: 0 | W78: 0 | X78: 0
B79: 4.14 | C79: Cost Sharing Reduction | D79: =D69/D73 -> 0 | E79: 0 | F79: 0 | G79: 0 | H79: 0 | I79: 0 | J79: 0 | K79: 0 | L79: 0 | M79: 0 | N79: 0 | O79: 0 | P79: 0 | Q79: 0 | R79: 0 | S79: 0 | T79: 0 | U79: 0 | V79: 0 | W79: 0 | X79: 0
B80: 4.15 | C80: Incurred Claims | D80: =D70/D73 -> 496.348 | E80: 0 | F80: 0 | G80: 0 | H80: 0 | I80: 0 | J80: 0 | K80: 0 | L80: 0 | M80: 0 | N80: 0 | O80: 0 | P80: 0 | Q80: 0 | R80: 0 | S80: 0 | T80: 0 | U80: 0 | V80: 0 | W80: 0 | X80: 0
B81: 4.16 | C81: Risk Adjustment Transfer Amount | D81: =D71/D73 -> 24.5407 | E81: 0 | F81: 0 | G81: 0 | H81: 0 | I81: 0 | J81: 0 | K81: 0 | L81: 0 | M81: 0 | N81: 0 | O81: 0 | P81: 0 | Q81: 0 | R81: 0 | S81: 0 | T81: 0 | U81: 0 | V81: 0 | W81: 0 | X81: 0
B82: 4.17 | C82: Premium | D82: =D72/D73 -> 581.2917 | E82: 0 | F82: 0 | G82: 0 | H82: 0 | I82: 0 | J82: 0 | K82: 0 | L82: 0 | M82: 0 | N82: 0 | O82: 0 | P82: 0 | Q82: 0 | R82: 0 | S82: 0 | T82: 0 | U82: 0 | V82: 0 | W82: 0 | X82: 0

Sheet Wksh 3 - Rating Areas
A1: Rating Area Data Collection [assistive technology users, please reference cell A2 for instructions] | C1: Specify the total number of Rating Areas in your State by selecting the Create Rating Areas button or Ctrl + Shift + R.
A2: Press TAB and directional arrow keys to read through the document. If macros are disabled, press and hold the ALT key and press the F, then I, and then N key. After that, select the Enable All Content option by pressing enter. (note that you can also press the C key to select "Enable All Content") Instructions can be found in cells C1 through C4. If screen reader fails to announce a cell after performing a dropdown selection, please press F2 and then ESC to force the screen reader to resume. | C2: Select only the Rating Areas you are offering plans within and add a factor for each area.
C3: To validate, select the Validate button or Ctrl + Shift + I.
C4: To finalize, select the Finalize button or Ctrl + Shift + F.
A5: Rating Area | B5: Rating Factor
A6: Rating Area 1 | B6: 1.0654
A7: Rating Area 2 | B7: 1.08
A8: Rating Area 3 | B8: 0.9508
A9: Rating Area 4 | B9: 1.055
A10: Rating Area 5 | B10: 0.9621
A11: Rating Area 6 | B11: 1.091
A12: Rating Area 7 | B12: 0.8973
A13: Rating Area 8 | B13: 1.086

Sheet PlanTemplate (hidden)
A1: REBUILD | C1: Product-Plan Data Collection
C3: Company Legal Name: | D3: =IF('Wksh 1 - Market Experience'!C3<>"", 'Wksh 1 - Market Experience'!C3,"") ->  | N3: State: | O3: =IF('Wksh 1 - Market Experience'!E4="","",'Wksh 1 - Market Experience'!E4) -> 
C4: HIOS Issuer ID: | D4: =IF('Wksh 1 - Market Experience'!C4<>"", 'Wksh 1 - Market Experience'!C4,"") ->  | N4: Market: | O4: =IF('Wksh 1 - Market Experience'!E5="","",'Wksh 1 - Market Experience'!E5) -> 
C5: Effective Date of Rate Change(s): | D5: =IF('Wksh 1 - Market Experience'!#REF!<>"", 'Wksh 1 - Market Experience'!#REF!,"") -> 
C7: Product/Plan Level Calculations
B9: Field # | C9: Section I: General Product and Plan Information
B10: 1.1 | C10: Product Name | K10: Rating Area 1 | L10: AL | M10: New | N10: Platinum | O10: Yes
B11: 1.2 | C11: Product ID | K11: Rating Area 2 | L11: AK | M11: Renewing | N11: Gold | O11: No
B12: 1.3 | C12: Plan Name | K12: Rating Area 3 | L12: AZ | M12: Terminated | N12: Silver
B13: 1.4 | C13: Plan ID (Standard Component ID) | K13: Rating Area 4 | L13: AR | N13: Bronze
B14: 1.5 | C14: Metal | K14: Rating Area 5 | L14: CA | N14: Catastrophic
B15: 1.6 | C15: AV Metal Value | K15: Rating Area 6 | L15: CO | N15: Not Applicable
B16: 1.7 | C16: Plan Category | K16: Rating Area 7 | L16: CT
B17: 1.8 | C17: Plan Type | K17: Rating Area 8 | L17: DC
B18: 1.9 | C18: Exchange Plan? | L18: DE
B19: 1.10 | C19: Effective Date of Proposed Rates | L19: FL
B20: 1.11 | C20: Cumulative Rate Change % (over 12 mos prior) | L20: GA
B21: 1.12 | C21: Product Rate Increase % | L21: HI
B22: 1.13 | C22: Submission Level Rate Increase % | L22: ID
L23: IL
C24: Section II: Experience Period and Current Plan Level Information | L24: IN
B25: 2.1 | C25: Plan ID (Standard Component ID) | D25: Total | E25: =IF(E13<>"",E13,"") ->  | L25: IA
B26: 2.2 | C26: Allowed Claims | D26: =SUM(E26:XFD26) -> 0 | L26: KS
B27: 2.3 | C27: Reinsurance | D27: =SUM(E27:XFD27) -> 0 | L27: KY
B28: 2.4 | C28: Member Cost Sharing | D28: =SUM(E28:XFD28) -> 0 | L28: LA
B29: 2.5 | C29: Cost Sharing Reduction | D29: =SUM(E29:XFD29) -> 0 | L29: ME
B30: 2.6 | C30: Incurred Claims | D30: =D26-D27-D28-D29 -> 0 | E30: =E26-E27-E28-E29 -> 0 | L30: MD
B31: 2.7 | C31: Risk Adjustment Transfer Amount | D31: =SUM(E31:XFD31) -> 0 | L31: MA
B32: 2.8 | C32: Premium | D32: =SUM(E32:XFD32) -> 0 | L32: MI
B33: 2.9 | C33: Experience Period Member Months | D33: =SUM(E33:XFD33) -> 0 | L33: MN
B34: 2.10 | C34: Current Enrollment | D34: =SUM(E34:XFD34) -> 0 | L34: MS
B35: 2.11 | C35: Current Premium PMPM | D35: =SUMPRODUCT(E35:XFD35,E34:XFD34)/D34 ->  | L35: MO
B36: 2.12 | C36: Loss Ratio | D36: =D30/(D31+D32) ->  | E36: =E30/(E31+E32) ->  | L36: MT
C37: Per Member Per Month | L37: NE
B38: 2.13 | C38: Allowed Claims | D38: =D26/D33 ->  | E38: =E26/E33 ->  | L38: NV
B39: 2.14 | C39: Reinsurance | D39: =D27/D33 ->  | E39: =E27/E33 ->  | L39: NH
B40: 2.15 | C40: Member Cost Sharing | D40: =D28/D33 ->  | E40: =E28/E33 ->  | L40: NJ
B41: 2.16 | C41: Cost Sharing Reduction | D41: =D29/D33 ->  | E41: =E29/E33 ->  | L41: NM
B42: 2.17 | C42: Incurred Claims | D42: =D30/D33 ->  | E42: =E30/E33 ->  | L42: NY
B43: 2.18 | C43: Risk Adjustment Transfer Amount | D43: =D31/D33 ->  | E43: =E31/E33 ->  | L43: NC
B44: 2.19 | C44: Premium | D44: =D32/D33 ->  | E44: =E32/E33 ->  | L44: ND
L45: OH
C46: Section III: Plan Adjustment Factors | L46: OK
B47: 3.1 | C47: Plan ID (Standard Component ID) | E47: =IF(E13<>"",E13,"") ->  | L47: OR
B48: 3.2 | C48: Market Adjusted Index Rate | E48: ='Wksh 1 - Market Experience'!F46 -> 0 | L48: PA
B49: 3.3 | C49: AV and Cost Sharing Design of Plan | L49: RI
B50: 3.4 | C50: Provider Network Adjustment | L50: SC
B51: 3.5 | C51: Benefits in Addition to EHB | L51: SD
C52: Administrative Costs | L52: TN
B53: 3.6 | C53: Administrative Expense | L53: TX
B54: 3.7 | C54: Taxes and Fees | L54: UT
B55: 3.8 | C55: Profit & Risk Load | L55: VT
B56: 3.9 | C56: Catastrophic Adjustment | L56: VA
B57: 3.10 | C57: Plan Adjusted Index Rate | E57: =($E$48*PRODUCT(E49:E51)*E56)/(1-SUM(E53:E55)) -> 0 | L57: WA
L58: WV
B59: 3.11 | C59: Age Calibration Factor | E59: =IF(D59<>"", D59, "") ->  | L59: WI
B60: 3.12 | C60: Geographic Calibration Factor | E60: =IF(D60<>"", D60, "") ->  | L60: WY
B61: 3.13 | C61: Tobacco Calibration Factor | E61: =IF(D61<>"", D61, "") -> 
B62: 3.14 | C62: Calibrated Plan Adjusted Index Rate | E62: =E57*(PRODUCT($E$59:$E$61)) -> 0
C64: Section IV: Projected Plan Level Information
B65: 4.1 | C65: Plan ID (Standard Component ID) | D65: Total | E65: =IF(E13<>"",E13,"") -> 
B66: 4.2 | C66: Allowed Claims | D66: =SUM(E66:XFD66) -> 0
B67: 4.3 | C67: Reinsurance | D67: =SUM(E67:XFD67) -> 0
B68: 4.4 | C68: Member Cost Sharing | D68: =SUM(E68:XFD68) -> 0
B69: 4.5 | C69: Cost Sharing Reduction | D69: =SUM(E69:XFD69) -> 0
B70: 4.6 | C70: Incurred Claims | D70: =D66-D67-D68-D69 -> 0 | E70: =E66-E67-E68-E69 -> 0
B71: 4.7 | C71: Risk Adjustment Transfer Amount | D71: =SUM(E71:XFD71) -> 0
B72: 4.8 | C72: Premium | D72: =SUM(E72:XFD72) -> 0
B73: 4.9 | C73: Projected Member Months | D73: =SUM(E73:XFD73) -> 0
B74: 4.10 | C74: Loss Ratio | D74: =D70/(D71+D72) ->  | E74: =E70/(E71+E72) -> 
C75: Per Member Per Month
B76: 4.11 | C76: Allowed Claims | D76: =D66/D73 ->  | E76: =E66/E73 -> 
B77: 4.12 | C77: Reinsurance | D77: =D67/D73 ->  | E77: =E67/E73 -> 
B78: 4.13 | C78: Member Cost Sharing | D78: =D68/D73 ->  | E78: =E68/E73 -> 
B79: 4.14 | C79: Cost Sharing Reduction | D79: =D69/D73 ->  | E79: =E69/E73 -> 
B80: 4.15 | C80: Incurred Claims | D80: =D70/D73 ->  | E80: =E70/E73 -> 
B81: 4.16 | C81: Risk Adjustment Transfer Amount | D81: =D71/D73 ->  | E81: =E71/E73 -> 
B82: 4.17 | C82: Premium | D82: =D72/D73 ->  | E82: =E72/E73 -> 
